[Event "Vugar Gashimov Memorial Blitz 2024"]
[Site "Shusha"]
[Date "2024.09.28"]
[Round "1.1"]
[White "Nepomniachtchi, Ian"]
[Black "Mamedyarov, Shakhriyar"]
[Result "1-0"]
[ECO "B28"]
[WhiteElo "2755"]
[BlackElo "2733"]
[Annotator "TA"]
[PlyCount "75"]
[EventDate "2024.09.28"]
[EventType "tourn"]
[EventCountry "AZE"]
[SourceTitle "playchess.com"]
[Source "ChessBase"]
[SourceQuality "1"]
[TimeControl "180+2"]

{[%evp 17,75,38,42,45,29,18,19,19,25,1,49,66,56,25,31,24,3,0,8,12,85,83,90,89,77,77,116,110,112,100,144,137,187,185,189,174,212,170,268,185,206,212,218,185,269,153,154,162,185,0,143,135,133,126,179,145,239,188,29989,29990]} 1. e4 {[%emt 0:00:02]} c5 {[%emt 0:00:01]} 2. Nf3 {[%emt 0:00:02]} a6 {[%emt 0:00:00]} 3. c4 {[%emt 0:00:08]} Nc6 {[%emt 0:00:03]} 4. d4 {[%emt 0:00:03]} cxd4 {[%emt 0:00:01]} 5. Nxd4 {[%emt 0:00:01]} e5 {[%emt 0:00:01]} 6. Nf5 {[%emt 0:00:09]} d5 {[%emt 0:00:01]} 7. cxd5 {[%emt 0:00:01]} Bxf5 {[%emt 0:00:01]} 8. exf5 {[%emt 0:00:01]} Nd4 {[%emt 0:00:01]} 9. Nc3 {[%emt 0:00:02]} Nf6 {[%emt 0:00:06]} 10. Bd3 {[%emt 0:00:11]} (10. Bg5 $5) 10... Be7 {[%emt 0:00:01]} 11. O-O {[%emt 0:00:06]} O-O $1 {[%emt 0:00:03]} 12. Re1 {[%emt 0:00:09] The position is equal.} Nxd5 {[%emt 0:00:04]} 13. Be4 {[%emt 0:00:17]} (13. Qg4 {keeps more tension.} Nf6 14. Qg3 Rc8 15. Be3) 13... Nxc3 {[%emt 0:00:29]} (13... Nf6 $1 $11) 14. bxc3 $14 {[%emt 0:00:01]} Nb5 {[%emt 0:00:01]} 15. Qf3 {[%emt 0:00:22]} (15. Qh5 {is interesting.} Bc5 16. f6 g6 17. Qf3) 15... Rc8 {[%emt 0:00:13]} 16. Bb2 {[%emt 0:00:04]} Nd6 {[%emt 0:00:03]} 17. Rad1 {[%emt 0:00:37] [#] f6 is the strong threat.} Qc7 {[%emt 0:00:08]} 18. Bd5 $36 {[%emt 0:00:07][%mdl 2048] White has the initiative.} Bf6 {[%emt 0:00:04]} (18... b5 $1 $11) 19. Ba3 $16 {[%emt 0:00:02] Hoping for Bxd6. White is more active. This pair of bishops is nice.} Rcd8 {[%emt 0:00:55]} 20. Bxd6 {[%emt 0:00:03]} Rxd6 {[%emt 0:00:02]} 21. Bxb7 {[%emt 0:00:02]} a5 {[%emt 0:00:12]} 22. Bd5 {[%emt 0:00:06]} Rb6 {[%emt 0:00:01]} 23. c4 {[%emt 0:00:05]} Qc5 {[%emt 0:00:10]} 24. Re2 {[%emt 0:00:05]} g6 {[%emt 0:00:10]} (24... Rb4 $16 25. g3 Rd8) 25. g3 $18 {[%emt 0:00:05]} Kg7 {[%emt 0:00:01]} 26. Kg2 {[%emt 0:00:01]} Rfb8 {[%emt 0:00:03]} 27. h4 {[%emt 0:00:03]} Rb2 {[%emt 0:00:15]} (27... h5 $142 28. Rd3 Rd8) 28. Rdd2 {[%emt 0:00:11]} Rxd2 {[%emt 0:00:17]} 29. Rxd2 {[%emt 0:00:01]} Qb4 {[%emt 0:00:10]} 30. Re2 {[%emt 0:00:02]} Qb1 {[%emt 0:00:01]} (30... Rf8 $142 31. h5 Qc5) 31. Be4 {[%emt 0:00:12]} ({White should play} 31. fxg6 $18 fxg6 32. Qe3) 31... Qc1 $16 {[%emt 0:00:04]} 32. Rc2 {[%emt 0:00:05]} Qe1 {[%emt 0:00:00]} 33. Re2 {[%emt 0:00:07]} Qc1 {[%emt 0:00:01]} 34. fxg6 {[%emt 0:00:02]} hxg6 {[%emt 0:00:01]} 35. Qg4 {[%emt 0:00:06]} Rd8 {[%emt 0:00:14]} (35... Qd1 $16 {was called for.} 36. Bc2 Qd6) 36. h5 {[%emt 0:00:04][%cal Rh5g6]} Qxc4 {[%emt 0:00:09]} (36... Qg5 $16 37. Qxg5 Bxg5 38. hxg6 fxg6) 37. hxg6 {[%emt 0:00:04]} fxg6 {[%emt 0:00:02] [#]} (37... Qc8 $18 38. Bf5 Qa8+ 39. Re4 Qd5 40. gxf7+ Kxf7 41. Qg6+ Ke7 42. Qh7+ Qf7) 38. Qxg6+ {[%emt 0:00:01] Weighted Error Value: White=0.29 (precise) /Black=0.44.  Mistake:       	White=1     	Black=8      Inaccurate:     	White=2     	Black=2      OK:         	White=8     	Black=8      Best:        	White=2     	Black=2      Strong:       	---       	Black=1} 1-0

[Event "Vugar Gashimov Memorial Blitz 2024"]
[Site "Shusha"]
[Date "2024.09.28"]
[Round "1.2"]
[White "Artemiev, Vladislav"]
[Black "Suleymanli, Aydin"]
[Result "0-1"]
[ECO "D02"]
[WhiteElo "2701"]
[BlackElo "2632"]
[Annotator "TA"]
[PlyCount "154"]
[EventDate "2024.09.28"]
[EventType "tourn"]
[EventCountry "AZE"]
[SourceTitle "playchess.com"]
[Source "ChessBase"]
[SourceQuality "1"]
[TimeControl "180+2"]

{[%evp 9,154,0,8,15,12,5,34,-7,18,-23,-12,-19,0,0,-9,-6,0,0,0,0,7,5,54,68,76,90,82,93,78,56,56,0,0,-33,15,16,12,11,106,114,100,111,99,107,105,100,175,150,172,157,179,104,186,183,170,148,223,211,218,198,202,195,199,148,216,14,172,87,74,28,44,18,28,19,53,43,75,-113,-116,-172,8,-181,-152,-174,-169,-199,-224,-214,-126,-317,-50,-325,-60,-66,-65,-69,-67,-29991,-69,-69,-69,-69,-68,-176,-57,-57,-56,-71,-71,-71,-86,-789,-742,-729,-455,-7080,-691,-657,-397,-10720,-9947,-10140,-8658,-10491,-6423,-29946,-5225,-29975,-29976,-29978,-29979,-29980,-29981,-29984,-29985,-29986,-29982,-29976,0,-29986,-29984,-29986,-29985,-29985,-29983,-29986,-29987]} 1. d4 {[%emt 0:00:03]} Nf6 {[%emt 0:00:01]} 2. Nf3 {[%emt 0:00:02]} d5 {[%emt 0:00:00]} 3. Bf4 {[%emt 0:00:02]} e6 {[%emt 0:00:04]} 4. Nbd2 {[%emt 0:00:02]} c5 {[%emt 0:00:09]} 5. e3 {[%emt 0:00:02]} Qb6 {[%emt 0:00:31]} 6. Rb1 {[%emt 0:00:01]} Bd6 {[%emt 0:00:02]} 7. Bg5 {[%emt 0:00:02]} Nbd7 {[%emt 0:00:09]} 8. c3 {[%emt 0:00:02] White is slightly better.} Qc7 {[%emt 0:00:07]} 9. Bd3 {[%emt 0:00:02]} b6 {[%emt 0:00:04]} 10. e4 {[%emt 0:00:14]} dxe4 {[%emt 0:00:07]} 11. Nxe4 {[%emt 0:00:03]} Nxe4 {[%emt 0:00:13]} 12. Bxe4 {[%emt 0:00:02]} Bb7 {[%emt 0:00:00]} 13. Bxb7 {[%emt 0:00:25]} Qxb7 {[%emt 0:00:02]} 14. O-O {[%emt 0:00:03]} h6 {[%emt 0:01:09]} 15. Bh4 {[%emt 0:00:06]} g5 {[%emt 0:00:01]} (15... Qc7 $11 {feels stronger.}) 16. dxc5 $14 {[%emt 0:00:16]} Be7 {[%emt 0:00:24]} 17. Bg3 {[%emt 0:00:22]} Nxc5 {[%emt 0:00:01]} 18. Re1 {[%emt 0:00:01]} h5 {[%emt 0:00:17]} 19. Be5 {[%emt 0:00:33]} (19. h3 {keeps more tension.} g4 20. hxg4 hxg4 21. Ne5) 19... Rg8 {[%emt 0:00:06]} 20. b4 {[%emt 0:00:14]} (20. Nd4 $14 g4 21. g3) 20... Nd7 $1 $11 {[%emt 0:00:09]} 21. Bd6 {[%emt 0:00:18] Bxe7 is the strong threat.} Bxd6 {[%emt 0:00:04]} (21... g4 $1 $15 22. Ne5 Nxe5 23. Bxe5 (23. Rxe5 $2 O-O-O $19) 23... h4) 22. Qxd6 {[%emt 0:00:01][%cal Oe1e6] Threatens to win with Rxe6+!} O-O-O {[%emt 0:00:01][%cal Od7c5]} 23. Nd4 $36 {[%emt 0:00:02][%cal Bf3d4,Bd4b5,Bb5d6,Bd6f7,Bf7e5,Be5c4][%mdl 2080] Strongly threatening Nc6. White has some pressure.} Qc7 {[%emt 0:00:03]} (23... Nf8 $11 {remains equal.} 24. Qe5 Ng6) 24. Nb5 $16 {[%emt 0:00:02]} Qxd6 {[%emt 0:00:01]} 25. Nxd6+ {[%emt 0:00:01]} Kc7 {[%emt 0:00:01]} 26. Nxf7 {[%emt 0:00:03]} Rdf8 {[%emt 0:00:00]} 27. Ne5 {[%emt 0:00:01]} (27. Nh6 $2 Rg6 28. Re4 Rxh6 $19) 27... Nf6 {[%emt 0:00:01]} (27... Nxe5 $16 28. Rxe5 Rg6) 28. c4 {[%emt 0:00:08]} g4 {[%emt 0:00:00]} 29. c5 {[%emt 0:00:08]} bxc5 {[%emt 0:00:01]} 30. Rec1 {[%emt 0:00:02]} (30. Rbc1 $18) 30... Nd5 {[%emt 0:00:06]} (30... Ne4 $16) 31. Rxc5+ $18 {[%emt 0:00:01]} (31. bxc5 $6 Rb8 $16) 31... Kd6 {[%emt 0:00:00]} 32. Nc4+ {[%emt 0:00:03]} Kd7 {[%emt 0:00:04]} (32... Ke7 $16 33. Ra5 Rf4) 33. Ra5 {[%emt 0:00:01]} Ra8 {[%emt 0:00:01]} 34. Ra6 {[%emt 0:00:07]} Rgc8 {[%emt 0:00:06]} 35. Ne5+ {[%emt 0:00:01]} Ke7 {[%emt 0:00:00][%cal Od5b4]} 36. Nc6+ {[%emt 0:00:04]} (36. a3 $18) 36... Kf6 {[%emt 0:00:05]} (36... Kd7 $16 {might work better.}) 37. Nd4 $2 {[%emt 0:00:01]} (37. Rxa7 Rxa7 38. Nxa7 Rc4 $14 (38... Ra8 39. Nc6 $11)) (37. f3 $18) 37... Nb6 $2 {[%emt 0:00:01]} (37... Rc4 $11 {and Black has nothing to worry.} 38. Nxe6 (38. Rxe6+ Kf7 $11) 38... Nxb4) 38. Re1 {[%emt 0:00:07]} (38. b5 $18) 38... Rc4 $16 {[%emt 0:00:03][%csl LRb4,LRd4]} 39. Ne2 {[%emt 0:00:19]} (39. Nxe6 Re8 $15 (39... Rxb4 $2 40. Ra5 $18)) ({White should try} 39. Rxe6+ $16 Kf7 40. h3 Rxd4 (40... g3 $2 41. fxg3 Rxd4 42. Rexb6 $18) 41. Rexb6 axb6 42. Rxa8 Rxb4 43. hxg4 Rxg4 44. a3) 39... Rxb4 $11 {[%emt 0:00:01]} 40. Ng3 {[%emt 0:00:00]} h4 {[%emt 0:00:02]} 41. Ne4+ {[%emt 0:00:02]} Kg6 {[%emt 0:00:03]} 42. Nc5 {[%emt 0:00:02]} Rc8 {[%emt 0:00:01]} 43. Nxe6 {[%emt 0:00:01]} (43. Nd3 $1 $16 {[%cal Rd3b4] stays on course.} Rd4 44. Ne5+ (44. Rxe6+ $2 Kf5 $19) 44... Kf6 45. f3 (45. Rxa7 Re4 $11) 45... gxf3 46. gxf3 (46. Rxa7 fxg2 47. Rf7+ Kg5 $11)) 43... Re4 $17 {[%emt 0:00:01][%cal Re4e1]} 44. Kf1 {[%emt 0:00:08]} (44. Rxe4 $2 Rc1+) (44. Nf8+ $17 Kh6 (44... Rxf8 $2 45. Rxe4 Kf5 46. f3 $18) 45. Kf1 (45. Rxb6+ $2 axb6 46. Rf1 Rxf8 $19) 45... Rxe1+ 46. Kxe1 Re8+ (46... Rxf8 47. Rxa7 Re8+ 48. Kf1 $17) 47. Kf1 Rxf8 48. Rxa7) 44... Rxe1+ $19 {[%emt 0:00:02]} 45. Kxe1 {[%emt 0:00:01][%cal Oe1d1]} Re8 {[%emt 0:00:00]} 46. Rxa7 {[%emt 0:00:01]} Rxe6+ $17 {[%emt 0:00:01][%mdl 4096] Endgame. KRN-KR} 47. Kf1 {[%emt 0:00:03]} Nc4 {[%emt 0:00:01]} 48. Rd7 {[%emt 0:00:02] Dodges Nd2+} Re4 {[%emt 0:00:05]} ({Better is} 48... Ne5 $19 49. Rd5 Re7) 49. a4 $2 {[%emt 0:00:03]} (49. Rd1 $17 {is a better defense.}) 49... Kf5 $2 {[%emt 0:00:02]} (49... Ne5 $1 $19 {[%cal Re5d7]} 50. Rd5 Kf5) 50. Rd5+ {[%emt 0:00:05][%mdl 8192] [#]} (50. f3 $15 Ke6 51. Rh7 gxf3 52. gxf3) 50... Kf6 $2 {[%emt 0:00:03]} ({Black should play} 50... Ne5 $1 $19 51. f3 gxf3 (51... Rxa4 $2 52. fxg4+ Ke4 53. Rd8 $19) 52. gxf3 Rxa4) 51. Rd3 {[%emt 0:00:01]} Nb2 {[%emt 0:00:02]} 52. Rd6+ {[%emt 0:00:02]} Ke5 {[%emt 0:00:01]} 53. Rh6 {[%emt 0:00:01][%mdl 8192]} (53. Rd8 $15) 53... Nc4 $2 {[%emt 0:00:02]} (53... Nxa4 54. Rxh4 Nb2 55. h3 $11) (53... Nd3 {mates} 54. f4+ Kd5 (54... Kxf4 {is a self mate.} 55. g3+ hxg3 56. Rf6+ Kg5 57. Rh6 Kxh6 58. hxg3 Re1+ 59. Kg2 Kg6 60. a5 Ra1 61. Kh2 Kf5 62. a6 Ke4 63. Kg2 Rxa6 64. Kg1 Kf3 65. Kh2 Kf2 66. Kh1 Rh6#) 55. Rh5+ Kd4 56. Re5 Rxf4+ (56... Nxe5 57. g3 h3 58. fxe5 Rxe5 59. Kf2 Kc3 60. Kg1 Rf5 61. a5 Kd3 62. a6 Ke2 63. Kh1 Rf1#) 57. Kg1 Nxe5 58. g3 Re4 (58... Nf3+ 59. Kf2 Rf6 60. gxh4 Ke4 61. Kg3 Nxh2 62. h5 Rd6 63. Kxh2 Kf3 64. a5 Rd2+ 65. Kh1 g3 66. h6 Rd1#) 59. gxh4 Re2 60. Kf1 Ke3 (60... Rxh2 {leads to mate.} 61. Kg1 g3 62. Kf1 Nf3 63. a5 Rf2#) 61. h5 Nf3 62. h6 Rf2#) 54. f3 $1 $15 {[%emt 0:00:06]} gxf3 {[%emt 0:00:03]} 55. gxf3 {[%emt 0:00:01]} Rf4 {[%emt 0:00:04]} 56. Kf2 {[%emt 0:00:01] [#] Prevents Ne3} (56. Rh8 $15) 56... Kd4 {[%emt 0:00:02]} (56... Nd6 $1 $19 57. a5 Ra4) 57. Rh8 {[%emt 0:00:04]} Ne5 {[%emt 0:00:01]} 58. Rd8+ {[%emt 0:00:02]} Kc5 {[%emt 0:00:03]} 59. Ke3 {[%emt 0:00:01]} Rxa4 {[%emt 0:00:01] aiming for ...Nc4+.} ({Reject} 59... Rxf3+ 60. Ke4 $11) 60. h3 $2 {[%emt 0:00:03][%mdl 8192]} (60. f4 $17) 60... Ng6 $19 {[%emt 0:00:03]} 61. Rg8 {[%emt 0:00:02]} Nf4 {[%emt 0:00:02]} 62. Rg5+ {[%emt 0:00:02]} (62. Rd8 $142) 62... Nd5+ {[%emt 0:00:01]} (62... Kd6 $142 63. Rg8 Nxh3) 63. Kd3 {[%emt 0:00:01]} Kd6 {[%emt 0:00:01] And now ...Nf4+ would win.} 64. Ke2 $2 {[%emt 0:00:05]} (64. Rg6+ Ke7 65. Kd2) 64... Nf4+ {[%emt 0:00:01]} 65. Ke3 {[%emt 0:00:00]} Nxh3 {[%emt 0:00:03]} 66. Rf5 {[%emt 0:00:03]} Ke6 {[%emt 0:00:02]} 67. Rf8 {[%emt 0:00:01]} Ng5 {[%emt 0:00:03]} 68. f4 {[%emt 0:00:01]} Ra3+ {[%emt 0:00:02]} 69. Ke2 {[%emt 0:00:01]} Ne4 {[%emt 0:00:02]} 70. Rh8 {[%emt 0:00:04]} h3 {[%emt 0:00:01]} 71. Kf1 {[%emt 0:00:02]} Kf5 {[%emt 0:00:02]} 72. Rh4 {[%emt 0:00:01]} Rg3 {[%emt 0:00:03]} 73. Ke2 {[%emt 0:00:01]} Ra3 {[%emt 0:00:02]} 74. Kf1 $1 {[%emt 0:00:02]} Nf6 {[%emt 0:00:01] Black mates.} 75. Rh6 {[%emt 0:00:04]} Ng4 {[%emt 0:00:01]} 76. Rh8 {[%emt 0:00:00]} Ra1+ {[%emt 0:00:02]} 77. Ke2 {[%emt 0:00:01]} h2 {[%emt 0:00:01] Both players deserved the win here.   Weighted Error Value: White=0.64/Black=0.44.  Loses game:     	White=5     	---        Missed win:     	White=1     	Black=3      Mistake:       	White=8     	Black=10     Inaccurate:     	White=3     	Black=3      OK:         	White=19    	Black=15     Best:        	---       	Black=8      Strong:       	White=1     	Black=1} 0-1

[Event "Vugar Gashimov Memorial Blitz 2024"]
[Site "Shusha"]
[Date "2024.09.28"]
[Round "1.3"]
[White "Abdusattorov, Nodirbek"]
[Black "Aravindh, Chithambaram VR."]
[Result "1/2-1/2"]
[ECO "C54"]
[WhiteElo "2766"]
[BlackElo "2698"]
[Annotator "TA"]
[PlyCount "116"]
[EventDate "2024.09.28"]
[EventType "tourn"]
[EventCountry "AZE"]
[SourceTitle "playchess.com"]
[Source "ChessBase"]
[SourceQuality "1"]
[TimeControl "180+2"]

{[%evp 58,116,241,255,322,339,323,353,413,192,189,133,119,58,65,60,48,5,0,0,26,30,72,8,163,170,188,188,180,189,420,370,531,603,608,595,592,680,531,0,0,0,0,0,0,-37,-41,-826,0,0,0,0,0,0,0,0,0,0,0,0,0]} 1. e4 {[%emt 0:00:01]} e5 {[%emt 0:00:01]} 2. Nf3 {[%emt 0:00:01]} Nc6 {[%emt 0:00:02]} 3. Bc4 {[%emt 0:00:01]} Bc5 {[%emt 0:00:03]} 4. c3 {[%emt 0:00:02]} Nf6 {[%emt 0:00:01]} 5. d3 {[%emt 0:00:01]} d6 {[%emt 0:00:03]} 6. b4 {[%emt 0:00:01]} Bb6 {[%emt 0:00:01]} 7. a4 {[%emt 0:00:00]} a5 {[%emt 0:00:04]} 8. b5 {[%emt 0:00:01]} Ne7 {[%emt 0:00:02]} 9. Nbd2 {[%emt 0:00:01]} Ng6 {[%emt 0:00:04]} 10. O-O {[%emt 0:00:02]} O-O {[%emt 0:00:11]} 11. d4 {[%emt 0:00:01] C54: Giuoco Piano: 4 c3 Nf6, main lines with 5 d4 and 5 d3.} Bg4 {[%emt 0:00:23]} 12. Qc2 {[%emt 0:00:09]} Qd7 {[%emt 0:00:09]} 13. Re1 $1 {[%emt 0:00:01][%mdl 4] is currently scoring better than 13.dxe5.} Rfe8 {[%emt 0:00:14]} 14. Bb2 {[%emt 0:00:04]} Nf4 {[%emt 0:00:17]} 15. Bf1 {[%emt 0:00:02]} Bh5 {[%emt 0:00:22]} 16. h3 {[%emt 0:00:07]} exd4 $146 {[%emt 0:00:12]} ({Predecessor:} 16... Rad8 17. Kh2 h6 18. g3 Ne6 19. Bg2 Ng5 20. Nxg5 hxg5 21. Nc4 exd4 22. cxd4 Bg6 {1-0 Abdusattorov,N (2766)-Grischuk,A (2719) Tashkent UzChess Masters 2024 (5)}) 17. cxd4 {[%emt 0:00:03]} Bg6 {[%emt 0:00:02]} 18. Nh4 {[%emt 0:00:30]} d5 {[%emt 0:00:08]} 19. Nxg6 {[%emt 0:00:02]} hxg6 {[%emt 0:00:02]} 20. e5 {[%emt 0:00:03]} Nh7 {[%emt 0:00:01]} 21. Nf3 {[%emt 0:00:04]} g5 {[%emt 0:00:12]} 22. Bc1 {[%emt 0:00:06]} g4 {[%emt 0:00:11]} 23. Bxf4 {[%emt 0:00:16]} gxf3 {[%emt 0:00:01]} 24. Rad1 {[%emt 0:00:01]} fxg2 {[%emt 0:00:10]} 25. Bxg2 {[%emt 0:00:01]} Nf8 {[%emt 0:00:01]} 26. Be3 {[%emt 0:00:01]} Ng6 {[%emt 0:00:06]} 27. Kh2 {[%emt 0:00:08]} c6 {[%emt 0:00:12]} 28. bxc6 {[%emt 0:00:05]} bxc6 {[%emt 0:00:02]} 29. Bf3 {[%emt 0:00:08]} Nh4 {[%emt 0:00:15]} 30. Bg4 {[%emt 0:00:01]} f5 {[%emt 0:00:01]} 31. Bh5 {[%emt 0:00:36]} f4 {[%emt 0:00:17]} 32. Bxf4 {[%emt 0:00:08]} (32. Bxe8 Nf3+ 33. Kg2 Nxe1+ 34. Rxe1 Rxe8 35. Bxf4 Bxd4 $11) 32... Re6 {[%emt 0:00:05]} 33. Bg4 {[%emt 0:00:15]} (33. Bg5 $142 Bd8 34. Bxh4 Bxh4 35. Bg4) 33... Rf8 $18 {[%emt 0:00:01]} 34. Bg3 {[%emt 0:00:01]} (34. Bxe6+ Qxe6 35. Bg3 Nf3+ 36. Kg2 Bxd4 $14 (36... Nxe1+ 37. Rxe1 Bxd4 38. Qd3 $17)) ({White should play} 34. Bg5 $18 Nf3+ 35. Bxf3 Rxf3 36. Re3) 34... Nf3+ $16 {[%emt 0:00:02]} 35. Kg2 {[%emt 0:00:07]} (35. Bxf3 $16 Rxf3 36. Rd3 Rxd3 37. Qxd3) 35... Nxe1+ $14 {[%emt 0:00:04]} 36. Rxe1 {[%emt 0:00:01]} Bxd4 $1 {[%emt 0:00:06]} 37. f4 {[%emt 0:00:04]} (37. Qd2 $5 c5 38. Qxa5 $16) 37... Qe7 {[%emt 0:00:04]} 38. Re2 {[%emt 0:00:10]} c5 {[%emt 0:00:02]} 39. Qb3 {[%emt 0:00:11]} Rd8 {[%emt 0:00:01]} ({Wrong is} 39... c4 $2 40. Qd1 $18) 40. f5 {[%emt 0:00:05]} (40. Bh4 $1 $16 {[%cal Rh4e7]} Qxh4 41. Bxe6+ Kh8 42. Qf3 (42. Bxd5 Qxf4 43. Be4 Qc1 $17)) 40... Rxe5 $2 {[%emt 0:00:01]} (40... c4 $11 {and Black stays safe.} 41. Qd1 Rxe5 42. Bxe5 Bxe5) 41. Bxe5 $18 {[%emt 0:00:01]} Bxe5 {[%emt 0:00:01] [#]} 42. Qe3 $1 {[%emt 0:00:00]} Re8 {[%emt 0:00:06]} 43. Bh5 {[%emt 0:00:01]} d4 $2 {[%emt 0:00:02]} (43... g6 44. Bxg6 Qg7) 44. Qb3+ $18 {[%emt 0:00:00]} Kh8 {[%emt 0:00:01]} (44... c4 {is a better defense.} 45. Qxc4+ Kh8) 45. Bxe8 $18 {[%emt 0:00:02]} Qg5+ {[%emt 0:00:02]} 46. Kf2 {[%emt 0:00:07]} Qh4+ {[%emt 0:00:02]} 47. Kf1 {[%emt 0:00:03]} Qf4+ {[%emt 0:00:01] [#]} 48. Rf2 $2 {[%emt 0:00:00]} ({Only move:} 48. Ke1 $1 $18 {Threatening mate with Bg6.} Qc1+ 49. Kf2) 48... Qc1+ $11 {[%emt 0:00:02]} 49. Kg2 {[%emt 0:00:03]} Qg5+ {[%emt 0:00:01]} 50. Kf1 {[%emt 0:00:03]} Qc1+ {[%emt 0:00:01]} 51. Ke2 {[%emt 0:00:01]} c4 {[%emt 0:00:01]} 52. Qa2 $2 {[%emt 0:00:21][%mdl 8192]} (52. Qb6 $15) 52... Qe3+ $2 {[%emt 0:00:05]} (52... d3+ $19 53. Kf3 Qf4+ 54. Kg2 Qg3+ 55. Kf1 c3 (55... Qxh3+ $2 56. Kg1 $19)) 53. Kf1 $11 {[%emt 0:00:03]} Qc1+ {[%emt 0:00:03]} 54. Kg2 {[%emt 0:00:01]} Qg5+ {[%emt 0:00:01]} 55. Kf1 {[%emt 0:00:04]} Qc1+ {[%emt 0:00:01]} 56. Kg2 {[%emt 0:00:07]} Qg5+ {[%emt 0:00:02]} 57. Kf3 {[%emt 0:00:06]} Qe3+ {[%emt 0:00:05]} 58. Kg2 {[%emt 0:00:03]} Qg5+ {[%emt 0:00:02]} 1/2-1/2

[Event "Vugar Gashimov Memorial Blitz 2024"]
[Site "Shusha"]
[Date "2024.09.28"]
[Round "1.4"]
[White "Rapport, Richard"]
[Black "Mamedov, Rauf"]
[Result "0-1"]
[ECO "B22"]
[WhiteElo "2715"]
[BlackElo "2637"]
[Annotator "TA"]
[PlyCount "78"]
[EventDate "2024.09.28"]
[EventType "tourn"]
[EventCountry "AZE"]
[SourceTitle "playchess.com"]
[Source "ChessBase"]
[SourceQuality "1"]
[TimeControl "180+2"]

{[%evp 14,78,16,0,27,-29,-33,-43,-25,-33,-18,-23,-7,-12,0,-6,8,-2,4,16,0,0,0,-31,-10,0,25,-20,-12,0,35,37,27,28,27,52,106,-347,-354,-343,-328,-413,-384,-341,-363,-388,0,0,21,0,0,0,0,-942,-896,-817,-802,-1178,-470,-720,-51,-12792,-8005,-12816,-9643,-2249,-922]} 1. e4 {[%emt 0:00:01]} c5 {[%emt 0:00:01]} 2. Nf3 {[%emt 0:00:02]} g6 {[%emt 0:00:01]} 3. Bc4 {[%emt 0:00:04]} Bg7 {[%emt 0:00:01]} 4. c3 {[%emt 0:00:01]} d6 {[%emt 0:00:00]} 5. d4 {[%emt 0:00:11]} cxd4 {[%emt 0:00:03]} 6. cxd4 {[%emt 0:00:03]} Nf6 {[%emt 0:00:01]} 7. Nc3 {[%emt 0:00:02]} O-O {[%emt 0:00:02]} 8. Bb3 {[%emt 0:00:05]} Bg4 {[%emt 0:00:01]} 9. O-O {[%emt 0:00:15]} (9. Be3 $142) 9... Nc6 {[%emt 0:00:03]} 10. Be3 {[%emt 0:00:11]} Nd7 {[%emt 0:00:01][%cal Bf6d7,Bd7e5,Be5g4][%mdl 32] Black is slightly better.} 11. Ne2 {[%emt 0:00:16]} Bxf3 {[%emt 0:00:18]} 12. gxf3 {[%emt 0:00:01]} e5 {[%emt 0:00:21]} 13. dxe5 {[%emt 0:00:01]} Ndxe5 {[%emt 0:00:10]} 14. Ng3 {[%emt 0:00:14]} h5 {[%emt 0:00:01]} 15. f4 {[%emt 0:00:09]} Ng4 {[%emt 0:00:01][%cal Od8h4]} 16. Qf3 {[%emt 0:00:02]} a5 {[%emt 0:00:26][%cal Oa5a4]} 17. Rad1 {[%emt 0:00:03]} a4 $40 {[%emt 0:00:07][%mdl 128] Black has some attack.} 18. Bd5 {[%emt 0:00:02]} Qh4 {[%emt 0:00:06]} 19. Qg2 {[%emt 0:00:03]} Ne7 {[%emt 0:00:01]} 20. Bxb7 {[%emt 0:00:07] A strong pair of Bishops.} (20. Bc1 {simplifies} Nxd5 21. Rxd5 Qe7 22. f5) 20... Rab8 {[%emt 0:00:01]} 21. Ba6 {[%emt 0:00:18]} Rxb2 {[%emt 0:00:02] Threatens to win with ...Nxe3.} 22. Bc1 {[%emt 0:00:01]} Rxa2 {[%emt 0:00:15]} 23. h3 {[%emt 0:00:01]} Nh6 {[%emt 0:00:46]} 24. Rxd6 {[%emt 0:00:06][%cal Of4f5]} Rc2 {[%emt 0:00:05] [#]} ({Black should try} 24... a3 $1 $14) 25. Bd3 $2 {[%emt 0:00:15][%mdl 8192] [#]} (25. Ne2 $1 $16 {and life is bright.}) 25... Rxc1 $1 $19 {[%emt 0:00:04][%mdl 512]} 26. Rxc1 {[%emt 0:00:04] Ne2 would now be deadly.} Qxf4 {[%emt 0:00:01]} 27. Rdc6 {[%emt 0:00:08]} Nxc6 {[%emt 0:00:01]} 28. Rxc6 {[%emt 0:00:01]} a3 {[%emt 0:00:08]} 29. Bc4 {[%emt 0:00:00]} Qd2 $2 {[%emt 0:00:15]} (29... Kh7 $19 30. Ra6 Rc8) 30. Rxg6 $11 {[%emt 0:00:04]} Qc1+ {[%emt 0:00:01]} (30... a2 31. Rxg7+ Kh8 (31... Kxg7 32. Nxh5+ Kh8 33. Qg7#) 32. Bxa2 (32. Nxh5 $2 a1=Q+ 33. Bf1 Qdd1 $19) 32... Qxa2 33. Rg5 $18 (33. Nxh5 Qa1+ 34. Qf1 Qe5 $14)) 31. Kh2 {[%emt 0:00:01]} Qf4 {[%emt 0:00:12] ...Rc8 is the strong threat.} 32. Kh1 {[%emt 0:00:03]} Qc1+ {[%emt 0:00:01]} 33. Nf1 $2 {[%emt 0:00:09][%mdl 8192]} (33. Qg1 $11 Qxc4 34. Rxg7+ Kh8 (34... Kxg7 35. Nxh5+ Kh8 36. Qg7#) 35. Qa1 (35. Nxh5 $2 Qxe4+ 36. Rg2 Qe5 $17)) 33... Qxc4 $19 {[%emt 0:00:07]} 34. Rxg7+ {[%emt 0:00:03]} Kh8 {[%emt 0:00:00]} 35. Ne3 {[%emt 0:00:05]} Qc1+ {[%emt 0:00:03]} (35... Qc3 $142 36. Rg5 a2 37. Rxh5 a1=Q+ (37... a1=B 38. Rxh6#) 38. Kh2 Qa6) 36. Kh2 {[%emt 0:00:04]} (36. Qg1 $142 Rc8 37. Qxc1 Rxc1+ 38. Rg1 Rxg1+ 39. Kxg1) 36... Qc7+ $2 {[%emt 0:00:01]} ({Less strong is} 36... Ng4+ 37. Rxg4 hxg4 38. Qg3 $15) ({Black should play} 36... a2 $19 37. Qg5 Qc7+ (37... a1=B 38. Qxh6#) 38. Kg2 Qd6 (38... a1=B 39. Qxh6#)) 37. Kh1 $2 {[%emt 0:00:08][%mdl 8192]} (37. Qg3 $15 Qxg3+ 38. Rxg3) 37... a2 {[%emt 0:00:04] Black is clearly winning.} 38. Qg1 {[%emt 0:00:01]} Qe5 {[%emt 0:00:04][%csl LRe4,LRg7]} 39. Rg5 {[%emt 0:00:04]} a1=Q {[%emt 0:00:02] Weighted Error Value: White=0.95/Black=0.67.  Loses game:     	White=3     	---        Missed win:     	---       	Black=1      Mistake:       	White=1     	Black=1      Inaccurate:     	White=3     	Black=1      OK:         	White=12    	Black=7      Best:        	White=1     	Black=1      Brilliant:      	---       	Black=1} (39... a1=R $2 {loses.} 40. Rxe5 Rxg1+ 41. Kxg1 $18) (39... Rg8 $142 40. Rxe5 Rxg1+ 41. Kxg1 a1=Q+ (41... a1=B $2 {perishes.} 42. Rxh5 Kg7 43. Kf1 $18) 42. Kg2 Qxe5) 0-1